[Event "Titled Tuesday Blitz November 14 Early 2023"]
[White "Osmak, Yuliia"]
[Black "Kornyukov, Alexey"]
[WhiteFideId "14101602"]
[BlackFideId "4150457"]
[WhiteElo "2512"]
[BlackElo "2343"]
[Result "1-0"]
[Round "6"]
[TimeControl "180+1"]
[Date "2023.11.14"]
[WhiteClock "0:00:12"]
[BlackClock "0:00:00"]
[Board "157"]

1. e4 {[%clk 0:02:56]}  c5 {[%clk 0:02:59]} 2. Nf3 {[%clk 0:02:54]}  Nc6 {[%clk 0:02:59]} 3. Bb5 {[%clk 0:02:54]}  g6 {[%clk 0:02:58]} 4. O-O {[%clk 0:02:52]}  Bg7 {[%clk 0:02:58]} 5. Re1 {[%clk 0:02:51]}  e5 {[%clk 0:02:55]} 6. Nc3 {[%clk 0:02:45]}  d6 {[%clk 0:02:54]} 7. a3 {[%clk 0:02:32]}  Ne7 {[%clk 0:02:54]} 8. d3 {[%clk 0:02:32]}  O-O {[%clk 0:02:53]} 9. h3 {[%clk 0:02:23]}  Be6 {[%clk 0:02:50]} 10. Ng5 {[%clk 0:02:16]}  Bd7 {[%clk 0:02:42]} 11. Bc4 {[%clk 0:02:15]}  h6 {[%clk 0:02:40]} 12. Nf3 {[%clk 0:02:11]}  Nd4 {[%clk 0:02:40]} 13. Nxd4 {[%clk 0:02:09]}  cxd4 {[%clk 0:02:34]} 14. Ne2 {[%clk 0:02:06]}  Be6 {[%clk 0:02:34]} 15. Bxe6 {[%clk 0:02:03]}  fxe6 {[%clk 0:02:33]} 16. f4 {[%clk 0:02:04]}  Qd7 {[%clk 0:02:24]} 17. fxe5 {[%clk 0:02:01]}  dxe5 {[%clk 0:02:22]} 18. Kh1 {[%clk 0:01:58]}  g5 {[%clk 0:02:20]} 19. Ng1 {[%clk 0:01:57]}  Ng6 {[%clk 0:02:19]} 20. Nf3 {[%clk 0:01:56]}  Nf4 {[%clk 0:02:18]} 21. Bxf4 {[%clk 0:01:54]}  Rxf4 {[%clk 0:02:14]} 22. Qd2 {[%clk 0:01:46]}  Raf8 {[%clk 0:02:12]} 23. Rf1 {[%clk 0:01:43]}  Qf7 {[%clk 0:01:59]} 24. Qe2 {[%clk 0:01:41]}  Qh5 {[%clk 0:01:57]} 25. Kg1 {[%clk 0:01:26]}  g4 {[%clk 0:01:44]} 26. Nh2 {[%clk 0:01:20]}  Rxf1+ {[%clk 0:01:31]} 27. Rxf1 {[%clk 0:01:19]}  Rxf1+ {[%clk 0:01:22]} 28. Nxf1 {[%clk 0:01:19]}  Qg5 {[%clk 0:01:14]} 29. Qxg4 {[%clk 0:01:17]}  Qxg4 {[%clk 0:01:14]} 30. hxg4 {[%clk 0:01:18]}  Kf7 {[%clk 0:01:13]} 31. Nh2 {[%clk 0:01:17]}  Kg6 {[%clk 0:01:13]} 32. Nf3 {[%clk 0:01:17]}  Bf6 {[%clk 0:01:12]} 33. Kf2 {[%clk 0:01:16]}  b5 {[%clk 0:01:11]} 34. Ke2 {[%clk 0:01:15]}  a5 {[%clk 0:01:10]} 35. c3 {[%clk 0:01:13]}  dxc3 {[%clk 0:01:03]} 36. bxc3 {[%clk 0:01:06]}  a4 {[%clk 0:00:54]} 37. Kd2 {[%clk 0:00:54]}  Be7 {[%clk 0:00:45]} 38. Nxe5+ {[%clk 0:00:53]}  Kg5 {[%clk 0:00:43]} 39. Nf3+ {[%clk 0:00:50]}  Kxg4 {[%clk 0:00:41]} 40. Nd4 {[%clk 0:00:50]}  Bxa3 {[%clk 0:00:35]} 41. Nxb5 {[%clk 0:00:50]}  Bb2 {[%clk 0:00:31]} 42. Kc2 {[%clk 0:00:49]}  a3 {[%clk 0:00:30]} 43. Nd4 {[%clk 0:00:47]}  e5 {[%clk 0:00:28]} 44. Nf5 {[%clk 0:00:46]}  h5 {[%clk 0:00:25]} 45. c4 {[%clk 0:00:45]}  Kg5 {[%clk 0:00:16]} 46. c5 {[%clk 0:00:45]}  Kf6 {[%clk 0:00:16]} 47. Ng3 {[%clk 0:00:39]}  Bd4 {[%clk 0:00:11]} 48. Kb3 {[%clk 0:00:26]}  Bxc5 {[%clk 0:00:10]} 49. Nxh5+ {[%clk 0:00:26]}  Kg5 {[%clk 0:00:10]} 50. Ng3 {[%clk 0:00:25]}  Kf4 {[%clk 0:00:08]} 51. Nf5 {[%clk 0:00:25]}  Bf8 {[%clk 0:00:03]} 52. Ka2 {[%clk 0:00:22]}  Bc5 {[%clk 0:00:03]} 53. Kb3 {[%clk 0:00:17]}  Bf8 {[%clk 0:00:03]} 54. Nh4 {[%clk 0:00:14]}  Kg4 {[%clk 0:00:02]} 55. Ng6 {[%clk 0:00:14]}  Bd6 {[%clk 0:00:03]} 56. Nxe5+ {[%clk 0:00:12]}  Bxe5 {[%clk 0:00:02]} 57. Kxa3 {[%clk 0:00:13]}  Kg3 {[%clk 0:00:03]} 58. Kb4 {[%clk 0:00:13]}  Kxg2 {[%clk 0:00:03]} 59. Kc4 {[%clk 0:00:13]}  Kf3 {[%clk 0:00:03]} 60. Kd5 {[%clk 0:00:13]}  Bb8 {[%clk 0:00:03]} 61. e5 {[%clk 0:00:12]}  Kf4 {[%clk 0:00:00]} 62. e6 {[%clk 0:00:12]} 1-0


[Site "https://www.chess.com"]

[Event "Titled Tuesday Blitz November 14 Early 2023"]
[White "VOneChess"]
[Black "Davidson, Kevin"]
[BlackFideId "2056810"]
[WhiteElo "2323"]
[BlackElo "2433"]
[Result "1/2-1/2"]
[Round "6"]
[TimeControl "180+1"]
[Date "2023.11.14"]
[WhiteClock "0:00:02"]
[BlackClock "0:00:04"]
[Board "159"]

1. e4 {[%clk 0:03:00]}  c5 {[%clk 0:02:57]} 2. Nf3 {[%clk 0:03:00]}  d6 {[%clk 0:02:54]} 3. d4 {[%clk 0:03:01]}  cxd4 {[%clk 0:02:45]} 4. Nxd4 {[%clk 0:03:02]}  Nf6 {[%clk 0:02:44]} 5. Nc3 {[%clk 0:03:02]}  a6 {[%clk 0:02:44]} 6. Bg5 {[%clk 0:03:02]}  e6 {[%clk 0:02:44]} 7. f4 {[%clk 0:03:01]}  Be7 {[%clk 0:02:44]} 8. Qf3 {[%clk 0:03:01]}  h6 {[%clk 0:02:44]} 9. Bh4 {[%clk 0:03:01]}  Qc7 {[%clk 0:02:41]} 10. O-O-O {[%clk 0:03:00]}  Nbd7 {[%clk 0:02:42]} 11. g4 {[%clk 0:02:58]}  g5 {[%clk 0:02:34]} 12. e5 {[%clk 0:02:57]}  gxh4 {[%clk 0:02:22]} 13. exf6 {[%clk 0:02:56]}  Nxf6 {[%clk 0:02:22]} 14. Bg2 {[%clk 0:02:53]}  Rg8 {[%clk 0:02:03]} 15. Rhe1 {[%clk 0:02:49]}  Rxg4 {[%clk 0:01:42]} 16. Bh3 {[%clk 0:02:35]}  h5 {[%clk 0:01:27]} 17. Bxg4 {[%clk 0:02:16]}  hxg4 {[%clk 0:01:28]} 18. Qf2 {[%clk 0:02:16]}  Nh5 {[%clk 0:01:07]} 19. Nf5 {[%clk 0:01:44]}  Qc5 {[%clk 0:00:37]} 20. Qxc5 {[%clk 0:01:13]}  dxc5 {[%clk 0:00:38]} 21. Nxe7 {[%clk 0:01:13]}  Kxe7 {[%clk 0:00:36]} 22. f5 {[%clk 0:00:59]}  Nf6 {[%clk 0:00:25]} 23. Na4 {[%clk 0:00:32]}  Bd7 {[%clk 0:00:19]} 24. Nxc5 {[%clk 0:00:31]}  Rc8 {[%clk 0:00:14]} 25. fxe6 {[%clk 0:00:30]}  Bxe6 {[%clk 0:00:11]} 26. Nxb7 {[%clk 0:00:23]}  g3 {[%clk 0:00:09]} 27. hxg3 {[%clk 0:00:19]}  hxg3 {[%clk 0:00:10]} 28. Nd6 {[%clk 0:00:17]}  Rg8 {[%clk 0:00:09]} 29. Nf5+ {[%clk 0:00:05]}  Ke8 {[%clk 0:00:09]} 30. Ne3 {[%clk 0:00:04]}  Rg5 {[%clk 0:00:08]} 31. Rg1 {[%clk 0:00:04]}  Ne4 {[%clk 0:00:06]} 32. Rde1 {[%clk 0:00:03]}  f5 {[%clk 0:00:06]} 33. Nf1 {[%clk 0:00:02]}  Kf7 {[%clk 0:00:04]} 34. Re3 {[%clk 0:00:02]}  Kf6 {[%clk 0:00:01]} 35. Nxg3 {[%clk 0:00:03]}  Nxg3 {[%clk 0:00:01]} 36. Rexg3 {[%clk 0:00:03]}  Rxg3 {[%clk 0:00:01]} 37. Rxg3 {[%clk 0:00:04]}  f4 {[%clk 0:00:01]} 38. Rf3 {[%clk 0:00:04]}  Ke5 {[%clk 0:00:01]} 39. Kd2 {[%clk 0:00:04]}  Ke4 {[%clk 0:00:01]} 40. Rf2 {[%clk 0:00:05]}  Bxa2 {[%clk 0:00:01]} 41. b3 {[%clk 0:00:05]}  a5 {[%clk 0:00:01]} 42. Kc3 {[%clk 0:00:02]}  a4 {[%clk 0:00:01]} 43. bxa4 {[%clk 0:00:01]}  Bd5 {[%clk 0:00:01]} 44. Kd2 {[%clk 0:00:01]}  f3 {[%clk 0:00:01]} 45. c3 {[%clk 0:00:01]}  Bc4 {[%clk 0:00:01]} 46. a5 {[%clk 0:00:02]}  Ba6 {[%clk 0:00:01]} 47. Kc2 {[%clk 0:00:02]}  Ke3 {[%clk 0:00:01]} 48. Rxf3+ {[%clk 0:00:01]}  Kxf3 {[%clk 0:00:02]} 49. Kb3 {[%clk 0:00:02]}  Ke4 {[%clk 0:00:02]} 50. Kb4 {[%clk 0:00:03]}  Kd5 {[%clk 0:00:03]} 51. Kb3 {[%clk 0:00:02]}  Kc5 {[%clk 0:00:03]} 52. Ka4 {[%clk 0:00:03]}  Bb5+ {[%clk 0:00:03]} 53. Kb3 {[%clk 0:00:03]}  Ba6 {[%clk 0:00:03]} 54. c4 {[%clk 0:00:02]}  Bxc4+ {[%clk 0:00:03]} 55. Kc3 {[%clk 0:00:03]}  Ba6 {[%clk 0:00:03]} 56. Kb3 {[%clk 0:00:01]}  Kb5 {[%clk 0:00:03]} 57. Kb2 {[%clk 0:00:02]}  Kxa5 {[%clk 0:00:04]} 1/2-1/2


[Site "https://www.chess.com"]

[Event "Titled Tuesday Blitz November 14 Early 2023"]
[White "Melikhov, Evgeny V."]
[Black "VitaliyChayka"]
[WhiteFideId "4122046"]
[WhiteElo "2372"]
[BlackElo "2233"]
[Result "1-0"]
[Round "6"]
[TimeControl "180+1"]
[Date "2023.11.14"]
[WhiteClock "0:00:04"]
[BlackClock "0:00:00"]
[Board "164"]

1. d4 {[%clk 0:03:00]}  d6 {[%clk 0:02:59]} 2. e4 {[%clk 0:03:00]}  Nf6 {[%clk 0:02:59]} 3. Bd3 {[%clk 0:02:59]}  e5 {[%clk 0:03:00]} 4. d5 {[%clk 0:02:59]}  c6 {[%clk 0:02:59]} 5. c4 {[%clk 0:02:59]}  cxd5 {[%clk 0:02:55]} 6. cxd5 {[%clk 0:02:59]}  Nbd7 {[%clk 0:02:56]} 7. Nc3 {[%clk 0:02:58]}  Nc5 {[%clk 0:02:56]} 8. Bc2 {[%clk 0:02:55]}  a5 {[%clk 0:02:47]} 9. Nf3 {[%clk 0:02:44]}  Be7 {[%clk 0:02:45]} 10. h3 {[%clk 0:02:43]}  O-O {[%clk 0:02:44]} 11. O-O {[%clk 0:02:43]}  Bd7 {[%clk 0:02:44]} 12. a4 {[%clk 0:02:43]}  Qb6 {[%clk 0:02:36]} 13. Ra3 {[%clk 0:02:27]}  Rfc8 {[%clk 0:02:34]} 14. Qe2 {[%clk 0:02:08]}  Bd8 {[%clk 0:02:30]} 15. Re1 {[%clk 0:01:59]}  Na6 {[%clk 0:02:19]} 16. Nb5 {[%clk 0:01:44]}  Bxb5 {[%clk 0:02:13]} 17. axb5 {[%clk 0:01:44]}  Nb4 {[%clk 0:02:13]} 18. Ba4 {[%clk 0:01:42]}  Qa7 {[%clk 0:02:09]} 19. Rc3 {[%clk 0:01:23]}  Bb6 {[%clk 0:02:09]} 20. Be3 {[%clk 0:01:22]}  Bxe3 {[%clk 0:01:57]} 21. Qxe3 {[%clk 0:01:20]}  Qxe3 {[%clk 0:01:51]} 22. Rexe3 {[%clk 0:01:19]}  Nd7 {[%clk 0:01:49]} 23. Nd2 {[%clk 0:01:04]}  Nb6 {[%clk 0:01:38]} 24. Bd1 {[%clk 0:00:53]}  Na2 {[%clk 0:01:31]} 25. Ra3 {[%clk 0:00:48]}  Rc1 {[%clk 0:01:27]} 26. Re1 {[%clk 0:00:47]}  Nb4 {[%clk 0:01:24]} 27. Kf1 {[%clk 0:00:45]}  Kf8 {[%clk 0:01:07]} 28. Nb3 {[%clk 0:00:33]}  Rb1 {[%clk 0:00:59]} 29. Rxa5 {[%clk 0:00:24]}  Rxa5 {[%clk 0:00:55]} 30. Nxa5 {[%clk 0:00:24]}  Nd3 {[%clk 0:00:56]} 31. Nxb7 {[%clk 0:00:24]}  Nxe1 {[%clk 0:00:52]} 32. Kxe1 {[%clk 0:00:24]}  Nc4 {[%clk 0:00:50]} 33. b3 {[%clk 0:00:23]}  Nb2 {[%clk 0:00:47]} 34. Kd2 {[%clk 0:00:22]}  Nxd1 {[%clk 0:00:45]} 35. Kc2 {[%clk 0:00:22]}  Ra1 {[%clk 0:00:23]} 36. Nxd6 {[%clk 0:00:21]}  Ke7 {[%clk 0:00:22]} 37. Nc4 {[%clk 0:00:14]}  Nxf2 {[%clk 0:00:22]} 38. b6 {[%clk 0:00:13]}  f6 {[%clk 0:00:19]} 39. b7 {[%clk 0:00:10]}  Nxe4 {[%clk 0:00:11]} 40. b8=Q {[%clk 0:00:10]}  Ra2+ {[%clk 0:00:11]} 41. Kd3 {[%clk 0:00:07]}  Nf2+ {[%clk 0:00:07]} 42. Ke3 {[%clk 0:00:06]}  Nd1+ {[%clk 0:00:06]} 43. Kf3 {[%clk 0:00:06]}  Rf2+ {[%clk 0:00:05]} 44. Kg3 {[%clk 0:00:06]}  Kf7 {[%clk 0:00:06]} 45. d6 {[%clk 0:00:05]}  h5 {[%clk 0:00:01]} 46. d7 {[%clk 0:00:05]}  Kg6 {[%clk 0:00:02]} 47. Qe8+ {[%clk 0:00:04]}  Kh6 {[%clk 0:00:02]} 48. d8=Q {[%clk 0:00:04]}  h4+ {[%clk 0:00:00]} 49. Kh2 {[%clk 0:00:04]} 1-0


[Site "https://www.chess.com"]

[Event "Titled Tuesday Blitz November 14 Early 2023"]
[White "Zavgorodniy, Sergiy"]
[Black "Babayeva, Nasrin"]
[WhiteFideId "14110148"]
[BlackFideId "13416626"]
[WhiteElo "2686"]
[BlackElo "1831"]
[Result "1-0"]
[Round "6"]
[TimeControl "180+1"]
[Date "2023.11.14"]
[WhiteClock "0:02:23"]
[BlackClock "0:00:06"]
[Board "167"]

1. d4 {[%clk 0:03:00]}  d5 {[%clk 0:02:58]} 2. c4 {[%clk 0:03:01]}  dxc4 {[%clk 0:02:58]} 3. e3 {[%clk 0:03:00]}  e6 {[%clk 0:02:56]} 4. Bxc4 {[%clk 0:03:00]}  Nf6 {[%clk 0:02:56]} 5. Nf3 {[%clk 0:03:00]}  c5 {[%clk 0:02:56]} 6. O-O {[%clk 0:03:00]}  a6 {[%clk 0:02:32]} 7. Qe2 {[%clk 0:02:57]}  b5 {[%clk 0:02:22]} 8. Bd3 {[%clk 0:02:57]}  Bb7 {[%clk 0:02:20]} 9. dxc5 {[%clk 0:02:57]}  Bxc5 {[%clk 0:02:17]} 10. Bxb5+ {[%clk 0:02:57]}  axb5 {[%clk 0:01:58]} 11. Qxb5+ {[%clk 0:02:58]}  Bc6 {[%clk 0:01:41]} 12. Qxc5 {[%clk 0:02:57]}  Ra5 {[%clk 0:01:40]} 13. Qd4 {[%clk 0:02:41]}  Rd5 {[%clk 0:01:29]} 14. Qc3 {[%clk 0:02:35]}  Rd1 {[%clk 0:01:17]} 15. Nbd2 {[%clk 0:02:28]}  Rxf1+ {[%clk 0:01:12]} 16. Nxf1 {[%clk 0:02:29]}  Bxf3 {[%clk 0:01:10]} 17. gxf3 {[%clk 0:02:28]}  O-O {[%clk 0:01:09]} 18. b3 {[%clk 0:02:28]}  Qd5 {[%clk 0:00:58]} 19. Kg2 {[%clk 0:02:27]}  Qg5+ {[%clk 0:00:31]} 20. Ng3 {[%clk 0:02:27]}  h5 {[%clk 0:00:28]} 21. e4 {[%clk 0:02:27]}  Qg6 {[%clk 0:00:24]} 22. h4 {[%clk 0:02:25]}  Nbd7 {[%clk 0:00:06]} 23. Bb2 {[%clk 0:02:23]} 1-0


[Site "https://www.chess.com"]

[Event "Titled Tuesday Blitz November 14 Early 2023"]
[White "Ramla2020"]
[Black "Akylbek2021"]
[WhiteElo "2445"]
[BlackElo "2236"]
[Result "1-0"]
[Round "6"]
[TimeControl "180+1"]
[Date "2023.11.14"]
[WhiteClock "0:00:44"]
[BlackClock "0:00:00"]
[Board "171"]

1. c4 {[%clk 0:03:00]}  Nf6 {[%clk 0:02:59]} 2. g3 {[%clk 0:02:59]}  g6 {[%clk 0:02:58]} 3. Bg2 {[%clk 0:02:59]}  Bg7 {[%clk 0:02:59]} 4. Nc3 {[%clk 0:03:00]}  c6 {[%clk 0:02:59]} 5. d4 {[%clk 0:03:00]}  d5 {[%clk 0:03:00]} 6. cxd5 {[%clk 0:03:00]}  cxd5 {[%clk 0:03:01]} 7. Nf3 {[%clk 0:03:00]}  Nc6 {[%clk 0:03:00]} 8. Ne5 {[%clk 0:03:00]}  O-O {[%clk 0:02:58]} 9. Nxc6 {[%clk 0:03:00]}  bxc6 {[%clk 0:02:57]} 10. O-O {[%clk 0:03:00]}  Bf5 {[%clk 0:02:57]} 11. Na4 {[%clk 0:03:00]}  Nd7 {[%clk 0:02:52]} 12. Be3 {[%clk 0:02:53]}  e5 {[%clk 0:02:50]} 13. Rc1 {[%clk 0:02:51]}  Rc8 {[%clk 0:02:42]} 14. b3 {[%clk 0:02:46]}  Re8 {[%clk 0:02:39]} 15. dxe5 {[%clk 0:02:43]}  Qa5 {[%clk 0:01:53]} 16. Bd2 {[%clk 0:02:31]}  Qa6 {[%clk 0:01:39]} 17. f4 {[%clk 0:02:31]}  Bg4 {[%clk 0:01:19]} 18. Re1 {[%clk 0:02:20]}  f6 {[%clk 0:01:05]} 19. h3 {[%clk 0:02:20]}  Bf5 {[%clk 0:00:59]} 20. exf6 {[%clk 0:02:16]}  Nxf6 {[%clk 0:00:59]} 21. Bc3 {[%clk 0:02:10]}  Re3 {[%clk 0:00:32]} 22. Kh2 {[%clk 0:02:03]}  Rce8 {[%clk 0:00:29]} 23. Bf3 {[%clk 0:01:48]}  Be4 {[%clk 0:00:12]} 24. Be5 {[%clk 0:01:31]}  Nd7 {[%clk 0:00:07]} 25. Qd2 {[%clk 0:01:17]}  Nxe5 {[%clk 0:00:03]} 26. Qxe3 {[%clk 0:00:58]}  Bxf3 {[%clk 0:00:03]} 27. exf3 {[%clk 0:00:55]}  Ng4+ {[%clk 0:00:03]} 28. hxg4 {[%clk 0:00:56]}  Rxe3 {[%clk 0:00:04]} 29. Rxe3 {[%clk 0:00:57]}  h5 {[%clk 0:00:02]} 30. gxh5 {[%clk 0:00:56]}  gxh5 {[%clk 0:00:03]} 31. Rce1 {[%clk 0:00:56]}  Kh7 {[%clk 0:00:02]} 32. Re7 {[%clk 0:00:53]}  Kg6 {[%clk 0:00:02]} 33. R1e6+ {[%clk 0:00:51]}  Bf6 {[%clk 0:00:01]} 34. Re2 {[%clk 0:00:45]}  Qd3 {[%clk 0:00:02]} 35. Nc5 {[%clk 0:00:44]}  Bxe7 {[%clk 0:00:02]} 36. Nxd3 {[%clk 0:00:44]}  Bd6 {[%clk 0:00:02]} 37. Kg2 {[%clk 0:00:44]}  c5 {[%clk 0:00:00]} 38. Re6+ {[%clk 0:00:44]} 1-0


[Site "https://www.chess.com"]

[Event "Titled Tuesday Blitz November 14 Early 2023"]
[White "Silvestre, Christian"]
[Black "Arnold, Ken"]
[WhiteFideId "30956269"]
[BlackFideId "2056836"]
[WhiteElo "2227"]
[BlackElo "2415"]
[Result "1-0"]
[Round "6"]
[TimeControl "180+1"]
[Date "2023.11.14"]
[WhiteClock "0:00:16"]
[BlackClock "0:00:25"]
[Board "173"]

1. e4 {[%clk 0:01:50]}  c6 {[%clk 0:02:59]} 2. g3 {[%clk 0:01:46]}  d5 {[%clk 0:02:58]} 3. Bg2 {[%clk 0:01:46]}  Nf6 {[%clk 0:02:58]} 4. exd5 {[%clk 0:01:45]}  Nxd5 {[%clk 0:02:58]} 5. Nf3 {[%clk 0:01:45]}  Bg4 {[%clk 0:02:55]} 6. O-O {[%clk 0:01:45]}  e6 {[%clk 0:02:55]} 7. c3 {[%clk 0:01:42]}  Be7 {[%clk 0:02:55]} 8. Qb3 {[%clk 0:01:40]}  Qb6 {[%clk 0:02:55]} 9. d4 {[%clk 0:01:39]}  Nd7 {[%clk 0:02:53]} 10. Nbd2 {[%clk 0:01:37]}  O-O {[%clk 0:02:52]} 11. Nc4 {[%clk 0:01:35]}  Qxb3 {[%clk 0:02:51]} 12. axb3 {[%clk 0:01:34]}  Bxf3 {[%clk 0:02:43]} 13. Bxf3 {[%clk 0:01:34]}  N5b6 {[%clk 0:02:40]} 14. Na5 {[%clk 0:01:33]}  Rab8 {[%clk 0:02:29]} 15. Bf4 {[%clk 0:01:31]}  e5 {[%clk 0:02:29]} 16. dxe5 {[%clk 0:01:28]}  g5 {[%clk 0:02:28]} 17. Be3 {[%clk 0:01:07]}  Nxe5 {[%clk 0:02:27]} 18. Bg2 {[%clk 0:01:04]}  Rfd8 {[%clk 0:02:03]} 19. h3 {[%clk 0:00:50]}  Nd3 {[%clk 0:01:57]} 20. Ra2 {[%clk 0:00:29]}  Bc5 {[%clk 0:01:53]} 21. Bxg5 {[%clk 0:00:26]}  Re8 {[%clk 0:01:14]} 22. Bf3 {[%clk 0:00:25]}  f6 {[%clk 0:01:05]} 23. Bh6 {[%clk 0:00:23]}  Nd5 {[%clk 0:00:47]} 24. b4 {[%clk 0:00:20]}  Bb6 {[%clk 0:00:40]} 25. Nc4 {[%clk 0:00:21]}  Bc7 {[%clk 0:00:33]} 26. Rxa7 {[%clk 0:00:19]}  Be5 {[%clk 0:00:29]} 27. b5 {[%clk 0:00:18]}  cxb5 {[%clk 0:00:29]} 28. Bxd5+ {[%clk 0:00:17]}  Kh8 {[%clk 0:00:29]} 29. Nxe5 {[%clk 0:00:17]}  fxe5 {[%clk 0:00:28]} 30. Be4 {[%clk 0:00:17]}  Nxb2 {[%clk 0:00:28]} 31. Rxb7 {[%clk 0:00:16]}  Rxb7 {[%clk 0:00:28]} 32. Bxb7 {[%clk 0:00:16]}  Nc4 {[%clk 0:00:25]} 33. Bc6 {[%clk 0:00:16]} 1-0


[Site "https://www.chess.com"]

[Event "Titled Tuesday Blitz November 14 Early 2023"]
[White "UK_23"]
[Black "Mishra, Manoj"]
[BlackFideId "5006007"]
[WhiteElo "2390"]
[BlackElo "2195"]
[Result "1-0"]
[Round "6"]
[TimeControl "180+1"]
[Date "2023.11.14"]
[WhiteClock "0:01:12"]
[BlackClock "0:00:53"]
[Board "175"]

1. e4 {[%clk 0:03:00]}  Nf6 {[%clk 0:03:00]} 2. e5 {[%clk 0:03:00]}  Nd5 {[%clk 0:03:00]} 3. d4 {[%clk 0:03:01]}  d6 {[%clk 0:03:00]} 4. Nf3 {[%clk 0:03:02]}  Nb6 {[%clk 0:02:56]} 5. g3 {[%clk 0:03:01]}  Nc6 {[%clk 0:02:54]} 6. exd6 {[%clk 0:02:59]}  cxd6 {[%clk 0:02:54]} 7. Bg2 {[%clk 0:02:59]}  Bg4 {[%clk 0:02:53]} 8. O-O {[%clk 0:02:58]}  g6 {[%clk 0:02:53]} 9. h3 {[%clk 0:02:55]}  Bxf3 {[%clk 0:02:53]} 10. Qxf3 {[%clk 0:02:55]}  Bg7 {[%clk 0:02:53]} 11. c3 {[%clk 0:02:55]}  O-O {[%clk 0:02:52]} 12. Re1 {[%clk 0:02:55]}  e6 {[%clk 0:02:48]} 13. h4 {[%clk 0:02:52]}  h5 {[%clk 0:02:47]} 14. Bg5 {[%clk 0:02:51]}  Qd7 {[%clk 0:02:37]} 15. Nd2 {[%clk 0:02:50]}  Nd5 {[%clk 0:02:34]} 16. Nc4 {[%clk 0:02:46]}  Nde7 {[%clk 0:02:20]} 17. Rad1 {[%clk 0:02:41]}  Nf5 {[%clk 0:02:18]} 18. d5 {[%clk 0:02:34]}  exd5 {[%clk 0:02:17]} 19. Qxd5 {[%clk 0:02:34]}  Rac8 {[%clk 0:01:37]} 20. Nxd6 {[%clk 0:02:29]}  Nxd6 {[%clk 0:01:36]} 21. Qxd6 {[%clk 0:02:29]}  Qxd6 {[%clk 0:01:36]} 22. Rxd6 {[%clk 0:02:30]}  Ne5 {[%clk 0:01:33]} 23. Re2 {[%clk 0:01:49]}  Nc4 {[%clk 0:01:27]} 24. Rd7 {[%clk 0:01:46]}  Rfe8 {[%clk 0:01:23]} 25. Rxe8+ {[%clk 0:01:39]}  Rxe8 {[%clk 0:01:24]} 26. b3 {[%clk 0:01:39]}  Re1+ {[%clk 0:01:22]} 27. Kh2 {[%clk 0:01:39]}  Ne5 {[%clk 0:01:19]} 28. Rd8+ {[%clk 0:01:13]}  Kh7 {[%clk 0:01:18]} 29. Bxb7 {[%clk 0:01:14]}  Ng4+ {[%clk 0:01:10]} 30. Kg2 {[%clk 0:01:14]}  Re2 {[%clk 0:01:03]} 31. Rd2 {[%clk 0:01:13]}  Re7 {[%clk 0:00:53]} 32. Bxe7 {[%clk 0:01:12]} 1-0


[Site "https://www.chess.com"]

[Event "Titled Tuesday Blitz November 14 Early 2023"]
[White "Jakubowska, Anna"]
[Black "Feliz Dotel, Dewar Bienvenido"]
[WhiteFideId "1121952"]
[BlackFideId "6402801"]
[WhiteElo "2340"]
[BlackElo "2158"]
[Result "1-0"]
[Round "6"]
[TimeControl "180+1"]
[Date "2023.11.14"]
[WhiteClock "0:01:07"]
[BlackClock "0:00:00"]
[Board "178"]

1. e4 {[%clk 0:02:56]}  e5 {[%clk 0:02:48]} 2. Nf3 {[%clk 0:02:55]}  Nc6 {[%clk 0:02:47]} 3. Bb5 {[%clk 0:02:55]}  Nf6 {[%clk 0:02:45]} 4. O-O {[%clk 0:02:54]}  Nxe4 {[%clk 0:02:44]} 5. d4 {[%clk 0:02:52]}  Nd6 {[%clk 0:02:43]} 6. Bxc6 {[%clk 0:02:50]}  dxc6 {[%clk 0:02:43]} 7. dxe5 {[%clk 0:02:50]}  Nf5 {[%clk 0:02:43]} 8. Qxd8+ {[%clk 0:02:49]}  Kxd8 {[%clk 0:02:44]} 9. Rd1+ {[%clk 0:02:48]}  Ke8 {[%clk 0:02:44]} 10. Nc3 {[%clk 0:02:46]}  h6 {[%clk 0:02:41]} 11. Ne4 {[%clk 0:02:44]}  Be6 {[%clk 0:02:39]} 12. b3 {[%clk 0:02:44]}  Rd8 {[%clk 0:02:35]} 13. Bb2 {[%clk 0:02:44]}  Bd5 {[%clk 0:02:23]} 14. Ng3 {[%clk 0:02:43]}  Bxf3 {[%clk 0:02:18]} 15. Rxd8+ {[%clk 0:02:26]}  Kxd8 {[%clk 0:02:19]} 16. Nxf5 {[%clk 0:02:26]}  Be4 {[%clk 0:02:15]} 17. Rd1+ {[%clk 0:02:25]}  Ke8 {[%clk 0:02:15]} 18. Ne3 {[%clk 0:02:24]}  Bc5 {[%clk 0:02:09]} 19. Bd4 {[%clk 0:02:19]}  Bxd4 {[%clk 0:01:59]} 20. Rxd4 {[%clk 0:02:19]}  Bg6 {[%clk 0:01:56]} 21. f4 {[%clk 0:02:18]}  f6 {[%clk 0:01:30]} 22. exf6 {[%clk 0:02:15]}  gxf6 {[%clk 0:01:29]} 23. f5 {[%clk 0:02:14]}  Bf7 {[%clk 0:01:28]} 24. Ng4 {[%clk 0:02:10]}  Ke7 {[%clk 0:01:01]} 25. Re4+ {[%clk 0:02:08]}  Kd6 {[%clk 0:00:59]} 26. Nxf6 {[%clk 0:02:06]}  h5 {[%clk 0:00:52]} 27. Re3 {[%clk 0:01:54]}  c5 {[%clk 0:00:39]} 28. c4 {[%clk 0:01:51]}  Rf8 {[%clk 0:00:28]} 29. Rd3+ {[%clk 0:01:45]}  Ke7 {[%clk 0:00:22]} 30. Ne4 {[%clk 0:01:44]}  b6 {[%clk 0:00:20]} 31. h3 {[%clk 0:01:36]}  h4 {[%clk 0:00:14]} 32. Re3 {[%clk 0:01:36]}  Kd7 {[%clk 0:00:09]} 33. Nf6+ {[%clk 0:01:35]}  Kd6 {[%clk 0:00:09]} 34. Re4 {[%clk 0:01:24]}  a5 {[%clk 0:00:03]} 35. Rxh4 {[%clk 0:01:21]}  a4 {[%clk 0:00:03]} 36. Rh6 {[%clk 0:01:16]}  Ke7 {[%clk 0:00:01]} 37. Nd5+ {[%clk 0:01:15]}  Bxd5 {[%clk 0:00:01]} 38. cxd5 {[%clk 0:01:13]}  Rxf5 {[%clk 0:00:00]} 39. bxa4 {[%clk 0:01:07]} 1-0


[Site "https://www.chess.com"]